Workbook

Sheet RE set-aside analysis
A1: RE set-aside analysis - Appendix 1
A3: Step 1: Estimating the amount of new NGCC generation associated with emissions leakage under a projected mass-based approach (2030)
A4: New NGCC Generation (MWh, CPP rate-based compliance) | B4: 100073194.5
A5: New NGCC generation (MWh, CPP mass-based compliance, no RE set-aside) | B5: 264274330.9
A6: 2030 projected coal retirements (MW, CPP mass-based compliance, no RE set-aside) | B6: 109408.0495
A7: 2030 projected coal retirements (MW, CPP rate-based compliance) | B7: 96972.27954
A8: Assumed NGCC replacement capacity (MW) | B8: =B6-B7 -> 12435.76991
A9: Assumed NGCC replacement generation (MWh) | B9: =B8*8760*0.85 -> 92596742.77
A10: New NGCC generation not associated with replacement capacity (MWh, no RE set-aside) | B10: =B5-B9 -> 171677588.1
A11: Estimated new NGCC generation associated with emissions leakage (MWh) | B11: =B10-B4 -> 71604393.67
A13: Step 2: Calculating an RE generation level consistent with mitigating emissions leakage to new NGCC units (2030)
A14: Projected RE generation in 2030 (MWh, CPP mass-based compliance, no RE set-aside) | B14: 259150655.2
A15: Estimated new NGCC generation associated with emissions leakage (MWh) | B15: =B11 -> 71604393.67
A16: Total RE generation consistent with mitigating emissions leakage to new NGCC units (MWh) | B16: =B15+B14 -> 330755048.8
A18: Step 3: Calculating the incentive available through the RE set-asides, assuming total RE generation consistent with mitigating emissions leakage ($/MWh)
A19: Step 3a: Calculating the size of the RE set-aside (allowances)
A20: 2030 national total of CPP state mass goals (tons) | B20: 1643551543
A21: RE set-aside percentage | B21: 0.01 | C21: 0.02 | D21: 0.03 | E21: 0.04 | F21: 0.05 | G21: 0.06 | H21: 0.07 | I21: 0.08 | J21: 0.09 | K21: 0.1
A22: Total RE set-aside allowances in all state set-asides | B22: =$B$20*B21 -> 16435515.43 | C22: =$B$20*C21 -> 32871030.86 | D22: =$B$20*D21 -> 49306546.29 | E22: 65742061.72 | F22: 82177577.15 | G22: 98613092.58 | H22: 115048608 | I22: 131484123.4 | J22: 147919638.9 | K22: 164355154.3
A24: Step 3b: Calculating the funds available to qualifying RE projects ($) | B24: Total Funds ($)
A25: Allowance price ($/ton) | B25: 0.01 | C25: 0.02 | D25: 0.03 | E25: 0.04 | F25: 0.05 | G25: 0.06 | H25: 0.07 | I25: 0.08 | J25: 0.09 | K25: 0.1
A26: 5 | B26: =B$22*$A26 -> 82177577.15 | C26: =C$22*$A26 -> 164355154.3 | D26: 246532731.4 | E26: 328710308.6 | F26: 410887885.8 | G26: 493065462.9 | H26: 575243040.1 | I26: 657420617.2 | J26: 739598194.4 | K26: 821775771.5
A27: 10 | B27: =B$22*$A27 -> 164355154.3 | C27: =C$22*$A27 -> 328710308.6 | D27: 493065462.9 | E27: 657420617.2 | F27: 821775771.5 | G27: 986130925.8 | H27: 1150486080 | I27: 1314841234 | J27: 1479196389 | K27: 1643551543
A28: 15 | B28: =B$22*$A28 -> 246532731.4 | C28: 493065462.9 | D28: 739598194.4 | E28: 986130925.8 | F28: 1232663657 | G28: 1479196389 | H28: 1725729120 | I28: 1972261852 | J28: 2218794583 | K28: 2465327314
A29: 20 | B29: 328710308.6 | C29: 657420617.2 | D29: 986130925.8 | E29: 1314841234 | F29: 1643551543 | G29: 1972261852 | H29: 2300972160 | I29: 2629682469 | J29: 2958392777 | K29: 3287103086
A31: Step 3c: Calculating $/MWh incentive available through the RE set-aside | B31: Incentive ($/MWh)
A32: Allowance price($/ton) | B32: 0.01 | C32: 0.02 | D32: 0.03 | E32: 0.04 | F32: 0.05 | G32: 0.06 | H32: 0.07 | I32: 0.08 | J32: 0.09 | K32: 0.1
A33: 5 | B33: =B26/$B$16 -> 0.2484544905 | C33: =C26/$B$16 -> 0.4969089811 | D33: =D26/$B$16 -> 0.7453634716 | E33: 0.9938179621 | F33: =F26/$B$16 -> 1.242272453 | G33: 1.490726943 | H33: =H26/$B$16 -> 1.739181434 | I33: 1.987635924 | J33: 2.236090415 | K33: 2.484544905
A34: 10 | B34: =B27/$B$16 -> 0.4969089811 | C34: =C27/$B$16 -> 0.9938179621 | D34: 1.490726943 | E34: 1.987635924 | F34: 2.484544905 | G34: 2.981453886 | H34: =H27/$B$16 -> 3.478362867 | I34: 3.975271849 | J34: 4.47218083 | K34: 4.969089811
A35: 15 | B35: =B28/$B$16 -> 0.7453634716 | C35: 1.490726943 | D35: 2.236090415 | E35: 2.981453886 | F35: 3.726817358 | G35: 4.47218083 | H35: 5.217544301 | I35: 5.962907773 | J35: 6.708271244 | K35: 7.453634716
A36: 20 | B36: =B29/$B$16 -> 0.9938179621 | C36: 1.987635924 | D36: 2.981453886 | E36: 3.975271849 | F36: 4.969089811 | G36: 5.962907773 | H36: 6.956725735 | I36: 7.950543697 | J36: 8.944361659 | K36: 9.938179621
A39: Step 4: Quantifying the levelized cost of energy (LCOE) difference between new NGCC and RE technologies in 2030 ($/MWh)
A40: Cost and Performance Assumptions* | B40: Solar PV | C40: Onshore Wind | D40: Advanced NGCC
A41: Capital cost ($/kW) | B41: 1294 | C41: 1668 | D41: 1006
A42: FO&M ($/kW-yr) | B42: 7.37 | C42: 46.5 | D42: 15.1
A43: VO&M ($/MWh) | B43: 0 | C43: 0 | D43: 3.2
A44: Fuel cost ($/MMBtu)** | B44: 0 | C44: 0 | D44: 6
A45: Heat rate (Btu/kWh) | B45: 0 | C45: 0 | D45: 6430
A46: Annual capacity factor (%) | B46: 0.25 | C46: 0.43 | D46: 0.85
A47: Capital charge rate (%) | B47: 0.1085 | C47: 0.1085 | D47: 0.1026
A48: Levelized Cost of Energy (LCOE, $/MWh)
A49: Capital | B49: =B41*B47/(8.76*B46) -> 64.10913242 | C49: =C41*C47/(8.76*C46) -> 48.04555591 | D49: =D41*D47/(8.76*D46) -> 13.86188558
A50: O&M | B50: =B43+(B42/(8.76*B46)) -> 3.365296804 | C50: =C43+(C42/(8.76*C46)) -> 12.34469576 | D50: =D43+(D42/(8.76*D46)) -> 5.227934461
A51: Fuel | B51: =B44*B45*10^-3 -> 0 | C51: =C44*C45*10^-3 -> 0 | D51: =D44*D45*10^-3 -> 38.58
A52: Total LCOE | B52: =SUM(B49:B51) -> 67.47442922 | C52: =SUM(C49:C51) -> 60.39025167 | D52: 57.66982004
A53: LCOE Difference | B53: =B52-D52 -> 9.804609186 | C53: =C52-D52 -> 2.720431635
A54: * Cost and performance characteristics taken from IPM v5.15 documentation.
A55: ** Illustrative natural gas fuel cost of $6/MMBtu is consistent with average delivered fuel price in both mass- and rate-based compliance runs. Refer to RIA for additional details.
A57: Identifying an RE set-aside level that eliminates the LCOE advantage of new NGCC, relative to new RE
A58: To establish the proposed RE set-aside level, using onshore wind as the benchmark RE technology and assuming a national average allowance price consistent with the mass-based compliance run ($13/ton), the highest set-aside consistent with a $2.72/MWh difference is 5%.
A59: To establish an upper range set-aside level, using utility-scale solar PV as the benchmark RE technology and assuming a national average allowance price greater than the mass-based compliance run ($13/ton), the set-aside consistent with a $9.80/MWh difference is 10%.
